bitfinex/quotes_BTCUSD_20241011
["timestamp","ask_amount","ask_price","bid_price","bid_amount"]
[1728644073146,0.341144,61158.0,61157.0,0.17985536]
[1728644073147,0.006634,61158.0,61157.0,0.17985536]
[1728644073373,0.001634,61158.0,61157.0,0.17985536]
[1728644073623,0.001634,61158.0,61157.0,0.18312548]
[1728644073881,0.001634,61158.0,61157.0,0.3638703]
[1728644074105,0.001634,61158.0,61157.0,0.44952475]
[1728644074556,0.001634,61158.0,61157.0,0.46252475]
[1728644074803,0.001634,61158.0,61157.0,0.46052475]
[1728644075037,0.001634,61158.0,61157.0,0.44752475]
[1728644075256,0.001634,61158.0,61157.0,0.46752475]
[1728644075464,0.001634,61158.0,61157.0,0.46152475]
[1728644075678,0.001634,61158.0,61157.0,0.47252475]
[1728644077820,0.001634,61158.0,61157.0,0.47255431]
[1728644078019,0.001634,61158.0,61157.0,0.38920735]
[1728644078459,0.001634,61158.0,61157.0,0.37461755]
[1728644081175,0.001634,61158.0,61157.0,0.4970385]
[1728644087493,0.001634,61158.0,61157.0,0.49709091]
[1728644089286,0.001634,61158.0,61157.0,0.19385536]
[1728644089499,0.001634,61158.0,61157.0,0.19712528]
[1728644090536,0.001634,61158.0,61157.0,0.37787111]
[1728644090750,0.001634,61158.0,61157.0,0.37460119]
[1728644092647,0.001634,61158.0,61157.0,0.374548]
[1728644097312,0.001634,61158.0,61157.0,0.47243739]
[1728644100333,0.001634,61158.0,61157.0,0.59383902]
[1728644101202,0.001634,61158.0,61157.0,0.59380414]
[1728644101425,0.001634,61158.0,61157.0,0.57182072]
[1728644101675,0.001634,61158.0,61157.0,0.74113002]
[1728644101934,0.001634,61158.0,61157.0,0.96394935]
[1728644102135,0.001634,61158.0,61157.0,1.05517903]
[1728644102359,0.001634,61158.0,61157.0,1.12982412]
[1728644102812,0.24774756,61178.0,61177.0,0.16346]
[1728644103259,0.005,61179.0,61178.0,0.163457]
[1728644103479,0.336047,61182.0,61177.0,0.33224264]
[1728644103480,0.005,61180.0,61177.0,0.33224264]
[1728644103703,0.17111737,61182.0,61178.0,0.163457]
[1728644103918,0.17111737,61182.0,61178.0,0.16878013]
[1728644104141,0.163449,61181.0,61178.0,0.16878013]
[1728644104378,0.16345,61181.0,61178.0,0.00532313]
[1728644104605,0.16345,61181.0,61178.0,0.01232313]
[1728644104825,0.16345,61181.0,61178.0,0.01332313]
[1728644105011,0.16345,61181.0,61178.0,0.00632313]
[1728644105263,0.16345,61181.0,61178.0,0.00532313]
[1728644105484,0.17111737,61182.0,61180.0,0.163451]
[1728644105670,0.33456537,61182.0,61178.0,0.17677913]
[1728644105883,0.33456537,61182.0,61179.0,0.00531791]
[1728644106095,0.33456537,61182.0,61178.0,0.171456]
[1728644106096,0.33456537,61182.0,61181.0,0.00531688]
[1728644106320,0.16345,61181.0,61178.0,0.008]
[1728644106549,0.16345,61181.0,61180.0,0.00580079]
[1728644106781,0.16345,61181.0,61178.0,0.008]
[1728644107005,0.33456437,61182.0,61178.0,0.171455]
[1728644107223,0.16345,61181.0,61178.0,0.170455]
[1728644107420,0.16345,61181.0,61179.0,0.001]
[1728644107672,0.16345,61181.0,61178.0,0.163455]
[1728644108104,0.16345,61181.0,61178.0,0.164455]
[1728644108315,0.16345,61181.0,61178.0,0.163455]
[1728644108527,0.16345,61181.0,61180.0,0.001]
[1728644109855,0.001636,61182.0,61180.0,0.16345]
[1728644110187,0.001636,61182.0,61179.0,0.326909]
[1728644110383,0.001636,61182.0,61180.0,0.163449]
[1728644110603,0.001636,61182.0,61181.0,0.163449]
[1728644111654,0.001636,61182.0,61181.0,0.169449]
[1728644112684,0.001636,61182.0,61181.0,0.17522253]
[1728644113321,0.001636,61182.0,61181.0,0.16922253]
[1728644113561,0.001636,61182.0,61181.0,0.17022253]
[1728644114476,0.001636,61182.0,61181.0,0.17349119]
[1728644114902,0.001636,61182.0,61181.0,0.18049119]
[1728644115545,0.001636,61182.0,61181.0,0.17722253]
[1728644122297,0.001636,61182.0,61181.0,0.01377353]
[1728644122298,0.43560553,61182.0,61181.0,0.01377353]
[1728644122780,0.264682,61182.0,61181.0,0.008]
[1728644123203,0.264682,61182.0,61181.0,0.01664681]
[1728644123421,0.264682,61182.0,61181.0,0.008]
[1728644123628,0.264682,61182.0,61181.0,0.01664681]
[1728644123850,0.264682,61182.0,61181.0,0.008]
[1728644124742,0.40918996,61182.0,61181.0,0.01664681]
[1728644125159,0.264682,61182.0,61181.0,0.01664681]
[1728644131275,0.264682,61182.0,61181.0,0.01746381]
[1728644132583,0.101236,61182.0,61181.0,0.01746381]
[1728644134539,0.101236,61182.0,61181.0,0.18091281]
[1728644134775,0.001636,61182.0,61181.0,0.18091281]
[1728644141952,0.001636,61182.0,61181.0,0.01746381]
[1728644142561,0.001636,61182.0,61181.0,0.18091281]
[1728644144206,0.001636,61182.0,61181.0,0.01746381]
[1728644144812,0.001636,61182.0,61181.0,0.18091281]
[1728644145537,0.001636,61182.0,61181.0,0.22981425]
[1728644147274,0.001636,61182.0,61181.0,0.18091281]
[1728644148207,0.001636,61182.0,61181.0,0.43523521]
[1728644152128,0.001636,61182.0,61181.0,0.36188304]
[1728644152343,0.001636,61182.0,61181.0,0.35488304]
[1728644152747,0.001636,61182.0,61181.0,0.36392105]
[1728644153120,0.001636,61182.0,61181.0,0.46198855]
[1728644153357,0.001636,61182.0,61181.0,0.36292105]
[1728644153713,0.001636,61182.0,61181.0,0.36492105]
[1728644155201,0.001636,61182.0,61181.0,0.48750864]
[1728644157196,0.001636,61182.0,61181.0,0.36492105]
[1728644157417,0.001636,61182.0,61181.0,0.36292105]
[1728644157549,0.001636,61182.0,61181.0,0.35394483]
[1728644157757,0.001636,61182.0,61181.0,0.47954852]
[1728644157971,0.001636,61182.0,61181.0,0.48954852]
[1728644158192,0.001636,61182.0,61181.0,0.36694483]
[1728644158394,0.001636,61182.0,61181.0,0.35694483]
[1728644158600,0.001636,61182.0,61181.0,0.47954852]
[1728644158814,0.001636,61182.0,61181.0,0.36694483]
[1728644159039,0.001636,61182.0,61181.0,0.48954852]
[1728644159256,0.001636,61182.0,61181.0,0.36694483]
[1728644159450,0.001636,61182.0,61181.0,0.48954852]
[1728644159661,0.001636,61182.0,61181.0,0.36694483]
[1728644160971,0.001636,61182.0,61181.0,0.46502735]
[1728644161212,0.001636,61182.0,61181.0,0.46502844]
[1728644161667,0.001636,61182.0,61181.0,0.46502829]
[1728644162363,0.001636,61182.0,61181.0,0.3669445]
[1728644162595,0.001636,61182.0,61181.0,0.46503272]
[1728644163550,0.001636,61182.0,61181.0,0.3669445]
[1728644163780,0.001636,61182.0,61181.0,0.48954797]
[1728644164724,0.001636,61182.0,61181.0,0.3669445]
[1728644165687,0.001636,61182.0,61181.0,0.36692426]
[1728644166618,0.001636,61182.0,61181.0,0.48951402]
[1728644166870,0.001636,61182.0,61181.0,0.36692426]
[1728644168222,0.001636,61182.0,61181.0,0.36685691]
[1728644169385,0.001636,61182.0,61181.0,0.48940106]
[1728644169618,0.001636,61182.0,61181.0,0.36685691]
[1728644170735,0.001636,61182.0,61181.0,0.48940106]
[1728644173726,0.095936,61182.0,61181.0,0.32595206]
[1728644173965,0.177736,61182.0,61181.0,0.32857555]
[1728644174200,0.341182,61182.0,61181.0,0.32857555]
[1728644174436,0.177736,61182.0,61181.0,0.32857555]
[1728644175368,0.177736,61182.0,61181.0,0.20601785]
[1728644175872,0.177736,61182.0,61181.0,0.30404737]
[1728644176093,0.341182,61182.0,61181.0,0.30404737]
[1728644176318,0.177736,61182.0,61181.0,0.20601785]
[1728644176895,0.341182,61182.0,61181.0,0.20601785]
[1728644177320,0.45314336,61182.0,61181.0,0.0250873]
[1728644177522,0.45314336,61182.0,61181.0,0.07411498]
[1728644177735,0.45314336,61182.0,61181.0,0.013817]
[1728644177947,0.341182,61182.0,61181.0,0.02508862]
[1728644185242,0.341182,61182.0,61181.0,0.0220637]
[1728644185454,0.001636,61182.0,61181.0,0.0220637]
[1728644185934,0.001636,61182.0,61181.0,0.25900508]
[1728644186165,0.001636,61182.0,61181.0,0.1855127]
[1728644187065,0.001636,61182.0,61181.0,0.0220637]
[1728644188824,0.001636,61182.0,61181.0,0.1855127]
[1728644189027,0.001636,61182.0,61181.0,0.0220637]
[1728644189670,0.165082,61182.0,61181.0,0.0220637]
[1728644190565,0.001636,61182.0,61181.0,0.0220637]
[1728644191472,0.255982,61182.0,61181.0,0.0220637]
[1728644196080,0.165082,61182.0,61181.0,0.0220637]
[1728644196553,0.001636,61182.0,61181.0,0.0220637]
[1728644197862,0.165082,61182.0,61181.0,0.0220637]
[1728644198317,0.165082,61182.0,61181.0,0.07104684]
[1728644198743,0.001636,61182.0,61181.0,0.07104684]
[1728644199870,0.165082,61182.0,61181.0,0.07104684]
[1728644201233,0.165082,61182.0,61181.0,0.0220637]
[1728644201444,0.165082,61182.0,61181.0,0.0710337]
[1728644201669,0.001636,61182.0,61181.0,0.0710337]
[1728644201908,0.001636,61182.0,61181.0,0.36624978]
[1728644202366,0.001636,61182.0,61181.0,0.48873708]
[1728644202795,0.001636,61182.0,61181.0,0.36624978]
[1728644203642,0.001636,61182.0,61181.0,0.36623669]
[1728644203854,0.001636,61182.0,61181.0,0.46415278]
[1728644204070,0.001636,61182.0,61181.0,0.46415416]
[1728644204319,0.001636,61182.0,61181.0,0.36623669]
[1728644205184,0.001636,61182.0,61181.0,0.46415408]
[1728644206356,0.001636,61182.0,61181.0,0.48863177]
[1728644206581,0.001636,61182.0,61181.0,0.58143177]
[1728644207472,0.001636,61182.0,61181.0,0.45903669]
[1728644208206,0.001636,61182.0,61181.0,0.52633669]
[1728644208411,0.001636,61182.0,61181.0,0.5262936]
[1728644208636,0.001636,61182.0,61181.0,0.5372936]
[1728644208855,0.001636,61182.0,61181.0,0.5342936]
[1728644209079,0.001636,61182.0,61181.0,0.5272936]
[1728644209305,0.001636,61182.0,61181.0,0.5232936]
[1728644209563,0.001636,61182.0,61181.0,0.5282936]
[1728644210036,0.001636,61182.0,61181.0,0.5232936]
[1728644210257,0.001636,61182.0,61181.0,0.5292936]
[1728644210491,0.001636,61182.0,61181.0,0.5412936]
[1728644210907,0.001636,61182.0,61181.0,0.5292936]
[1728644211322,0.001636,61182.0,61181.0,0.5422936]
[1728644212682,0.001636,61182.0,61181.0,0.89054673]
[1728644213129,0.001636,61182.0,61181.0,0.89041646]
[1728644213594,0.001636,61182.0,61181.0,0.87141646]
[1728644213818,0.001636,61182.0,61181.0,1.08807722]
[1728644214038,0.001636,61182.0,61181.0,1.10207722]
[1728644214276,0.001636,61182.0,61181.0,0.89841646]
[1728644214504,0.001636,61182.0,61181.0,0.88641646]
[1728644214756,0.001636,61182.0,61181.0,1.10307722]
[1728644214974,0.001636,61182.0,61181.0,1.11707722]
[1728644215189,0.001636,61182.0,61181.0,1.02181809]
[1728644215435,0.001636,61182.0,61181.0,0.71986583]
[1728644215657,0.001636,61182.0,61181.0,0.70686583]
[1728644215917,0.001636,61182.0,61181.0,0.84226746]
[1728644216129,0.001636,61182.0,61181.0,0.72086583]
[1728644216804,0.001634,61187.0,61186.0,0.291436]
[1728644217030,0.001634,61187.0,61186.0,0.9390478]
[1728644217242,0.001634,61187.0,61186.0,1.09050241]
[1728644217484,0.001634,61187.0,61186.0,1.0653986]
[1728644217727,0.001634,61187.0,61186.0,1.116255]
[1728644217958,0.001634,61187.0,61186.0,1.130255]
[1728644218181,0.001634,61187.0,61186.0,1.13210277]
[1728644218853,0.001634,61187.0,61186.0,1.14610277]
[1728644219812,0.001634,61187.0,61186.0,1.11810277]
[1728644220056,0.001634,61187.0,61186.0,1.14610277]
[1728644220275,0.001634,61187.0,61186.0,1.14410277]
[1728644221182,0.001634,61187.0,61186.0,1.23957161]
[1728644221413,0.001634,61187.0,61186.0,1.24157161]
[1728644222063,0.001634,61187.0,61186.0,1.23957161]
[1728644222299,0.001634,61187.0,61186.0,1.09324637]
[1728644222764,0.001634,61187.0,61186.0,0.97184474]
[1728644223199,0.001634,61187.0,61186.0,0.97384474]
[1728644223418,0.001634,61187.0,61186.0,1.09324637]
[1728644223675,0.001634,61187.0,61186.0,1.1101286]
[1728644224125,0.001634,61187.0,61186.0,1.1081286]
[1728644224335,0.001634,61187.0,61186.0,0.98672697]
[1728644225282,0.001634,61187.0,61186.0,1.10859524]
[1728644225709,0.001634,61187.0,61186.0,1.10859438]
[1728644226801,0.001634,61187.0,61186.0,1.01409438]
[1728644227223,0.001634,61187.0,61186.0,0.89222697]
[1728644227434,0.001634,61187.0,61186.0,0.89542521]
[1728644227631,0.001634,61187.0,61186.0,0.77402358]
[1728644227850,0.001634,61187.0,61186.0,0.89542521]
[1728644228272,0.001634,61187.0,61186.0,0.89516842]
[1728644229863,0.001634,61187.0,61186.0,0.69496679]
[1728644230312,0.001634,61187.0,61186.0,0.79245325]
[1728644230540,0.001634,61187.0,61186.0,0.91385488]
[1728644232373,0.001634,61187.0,61186.0,0.81636842]
[1728644232593,0.001634,61187.0,61186.0,0.91385488]
[1728644235382,0.001634,61187.0,61186.0,1.03525651]
[1728644235621,0.001634,61187.0,61186.0,1.20315651]
[1728644235857,0.001634,61187.0,61186.0,1.10612163]
[1728644236317,0.001634,61187.0,61186.0,1.22752326]
[1728644236550,0.001634,61187.0,61186.0,1.10612163]
[1728644237636,0.001634,61187.0,61186.0,1.10567005]
[1728644237865,0.001634,61187.0,61186.0,1.10767005]
[1728644238338,0.001634,61187.0,61186.0,1.15648572]
[1728644239009,0.001634,61187.0,61186.0,1.03508409]
[1728644239274,0.001634,61187.0,61186.0,0.98426842]
[1728644239735,0.001634,61187.0,61186.0,1.10609919]
[1728644240170,0.001634,61187.0,61186.0,0.81681636]
[1728644240438,0.001634,61187.0,61186.0,0.69496679]
[1728644240648,0.001634,61187.0,61186.0,0.79246086]
[1728644241059,0.001634,61187.0,61186.0,0.69497425]
[1728644242172,0.001634,61187.0,61186.0,0.81683251]
[1728644242383,0.001634,61187.0,61186.0,0.81183251]
[1728644242636,0.001634,61187.0,61186.0,0.45594454]
[1728644242832,0.001634,61187.0,61186.0,0.03941538]
[1728644243087,0.001634,61187.0,61186.0,0.20285138]
[1728644243733,0.001634,61187.0,61186.0,0.18885138]
[1728644243955,0.001634,61187.0,61186.0,0.20285138]
[1728644244422,0.001634,61187.0,61186.0,0.18885138]
[1728644245562,0.001634,61187.0,61186.0,0.20285138]
[1728644245975,0.001634,61187.0,61186.0,0.18885138]
[1728644246193,0.001634,61187.0,61186.0,0.18485138]
[1728644246404,0.001634,61187.0,61186.0,0.18885138]
[1728644246848,0.001634,61187.0,61186.0,0.19885138]
[1728644247030,0.001634,61187.0,61186.0,0.18485138]
[1728644247237,0.001634,61187.0,61186.0,0.19885138]
[1728644248796,0.001634,61187.0,61186.0,0.18885138]
[1728644249161,0.001634,61187.0,61186.0,0.19685138]
[1728644249392,0.001634,61187.0,61186.0,0.31825301]
[1728644250192,0.001634,61187.0,61186.0,0.19685138]
[1728644251664,0.001634,61187.0,61186.0,0.24567383]
[1728644252928,0.001634,61187.0,61186.0,0.647341]
[1728644253130,0.001634,61187.0,61186.0,0.64407251]
[1728644253355,0.001634,61187.0,61186.0,0.68826543]
[1728644254031,0.001634,61187.0,61186.0,0.70325779]
[1728644256274,0.001634,61187.0,61186.0,0.58120166]
[1728644259590,0.001634,61187.0,61186.0,0.58120634]
[1728644261283,0.001634,61187.0,61186.0,0.68029427]
[1728644264084,0.001634,61187.0,61186.0,0.68353097]
[1728644264527,0.001634,61187.0,61186.0,0.56144304]
[1728644264999,0.001634,61187.0,61186.0,0.68357078]
[1728644265428,0.001634,61187.0,61186.0,0.56144304]
[1728644269229,0.001634,61187.0,61186.0,0.56166145]
[1728644270405,0.001634,61187.0,61186.0,0.97336308]
[1728644270652,0.001634,61187.0,61186.0,0.97136308]
[1728644271132,0.001634,61187.0,61186.0,0.88688985]
[1728644271359,0.001634,61187.0,61186.0,0.72158985]
[1728644271579,0.001634,61187.0,61186.0,0.83132868]
[1728644272033,0.001634,61187.0,61186.0,0.82332868]
[1728644272243,0.001634,61187.0,61186.0,0.83732868]
[1728644272471,0.001634,61187.0,61186.0,0.80932868]
[1728644272951,0.001634,61187.0,61186.0,0.82332868]
[1728644273162,0.001634,61187.0,61186.0,0.80932868]
[1728644273377,0.001634,61187.0,61186.0,0.82332868]
[1728644273868,0.001634,61187.0,61186.0,0.82329785]
[1728644274343,0.001634,61187.0,61186.0,0.88623984]
[1728644274578,0.001634,61187.0,61186.0,0.87223984]
[1728644275025,0.001634,61187.0,61186.0,0.88623984]
[1728644276005,0.001634,61187.0,61186.0,1.17854147]
[1728644277153,0.001634,61187.0,61186.0,1.03187884]
[1728644277387,0.001634,61187.0,61186.0,1.01987884]
[1728644277624,0.001634,61187.0,61186.0,1.02187884]
[1728644277880,0.001634,61187.0,61186.0,1.03387884]
[1728644278338,0.001634,61187.0,61186.0,1.01987884]
[1728644278567,0.001634,61187.0,61186.0,1.03387884]
[1728644279051,0.001634,61187.0,61186.0,1.18057393]
[1728644279284,0.001634,61187.0,61186.0,1.18557393]
[1728644279775,0.001634,61187.0,61186.0,1.03887884]
[1728644282060,0.001634,61187.0,61186.0,1.03890274]
[1728644283262,0.001634,61187.0,61186.0,1.04090274]
[1728644284200,0.001634,61187.0,61186.0,1.03890274]
[1728644286097,0.001634,61187.0,61186.0,0.88950111]
[1728644286338,0.001634,61187.0,61186.0,1.16230437]
[1728644286580,0.001634,61187.0,61186.0,1.37883851]
[1728644286808,0.001634,61187.0,61186.0,1.16230437]
[1728644287057,0.001634,61191.0,61190.0,0.31282663]
[1728644287293,0.001634,61191.0,61190.0,0.81683351]
[1728644287524,0.001634,61191.0,61190.0,0.82307374]
[1728644288720,0.001634,61191.0,61190.0,0.82295002]
[1728644289425,0.001634,61191.0,61190.0,0.83695002]
[1728644289881,0.0005,61199.0,61198.0,0.163404]
[1728644290158,0.0005,61199.0,61198.0,1.15415029]
[1728644290362,0.0005,61199.0,61198.0,0.9661648]
[1728644290608,0.0005,61199.0,61198.0,1.16348009]
[1728644290840,0.0005,61199.0,61198.0,1.16848009]
[1728644291078,0.0005,61199.0,61198.0,1.18248009]
[1728644291312,0.0005,61199.0,61198.0,1.16848009]
[1728644291778,0.0005,61199.0,61198.0,1.03596963]
[1728644292020,0.0005,61199.0,61198.0,1.18244202]
[1728644292280,0.0005,61199.0,61198.0,1.21088888]
[1728644292756,0.0005,61199.0,61198.0,1.19688888]
[1728644292989,0.0005,61199.0,61198.0,1.08948725]
[1728644293275,0.0005,61199.0,61198.0,0.69292097]
[1728644293539,0.0005,61199.0,61198.0,0.8143226]
[1728644301156,0.0005,61199.0,61198.0,0.81422885]
[1728644301870,0.0005,61199.0,61198.0,0.68782722]
[1728644302099,0.0005,61199.0,61198.0,0.59315057]
[1728644302100,0.0767,61199.0,61198.0,0.59315057]
[1728644302322,0.0767,61199.0,61198.0,0.49573492]
[1728644303039,0.0767,61199.0,61198.0,0.59336757]
[1728644303511,0.001318,61199.0,61198.0,0.59336757]
[1728644307215,0.001318,61199.0,61198.0,0.7147692]
[1728644308113,0.001318,61199.0,61198.0,0.61713655]
[1728644308328,0.001318,61199.0,61198.0,0.73917157]
[1728644310700,0.001318,61199.0,61198.0,0.739301]
[1728644312378,0.001318,61199.0,61198.0,0.61721757]
[1728644313949,0.001318,61199.0,61198.0,0.80952687]
[1728644315070,0.001318,61199.0,61198.0,0.68812524]
[1728644315318,0.001318,61199.0,61198.0,0.80952687]
[1728644316462,0.001318,61199.0,61198.0,0.68812524]
[1728644316680,0.001318,61199.0,61198.0,0.80952687]
[1728644318211,0.001318,61199.0,61198.0,0.66512524]
[1728644318447,0.091918,61199.0,61198.0,0.66512524]
[1728644318882,0.091918,61199.0,61198.0,0.6652417]
[1728644320253,0.091918,61199.0,61198.0,0.66526129]
[1728644320786,0.091918,61199.0,61198.0,0.38150513]
[1728644321017,0.091918,61199.0,61198.0,0.47926124]
[1728644321700,0.091918,61199.0,61198.0,0.45483475]
[1728644321920,0.172818,61199.0,61198.0,0.45483475]
[1728644322375,0.172818,61199.0,61198.0,0.47926124]
[1728644323071,0.172818,61199.0,61198.0,0.45484017]
[1728644323341,0.172818,61199.0,61198.0,0.47928709]
[1728644323497,0.172818,61199.0,61198.0,0.38150513]
[1728644323762,0.172818,61199.0,61198.0,0.36750513]
[1728644324009,0.172818,61199.0,61198.0,0.35350513]
[1728644324278,0.172818,61199.0,61198.0,0.36750513]
[1728644324504,0.172818,61199.0,61198.0,0.35350513]
[1728644324964,0.172818,61199.0,61198.0,0.37250513]
[1728644325198,0.172818,61199.0,61198.0,0.36450513]
[1728644325424,0.172818,61199.0,61198.0,0.46728709]
[1728644325910,0.172818,61199.0,61198.0,0.36950513]
[1728644326169,0.47490243,61199.0,61198.0,0.02268608]
[1728644326655,0.45762063,61199.0,61198.0,0.02268608]
[1728644327091,0.45762063,61199.0,61198.0,0.01168608]
[1728644327334,0.336219,61199.0,61198.0,0.01168608]
[1728644327585,0.172818,61199.0,61198.0,0.01668608]
[1728644327833,0.172818,61199.0,61198.0,0.01168608]
[1728644328151,0.337219,61199.0,61198.0,0.00768608]
[1728644328240,0.173818,61199.0,61198.0,0.00868608]
[1728644328686,0.337219,61199.0,61198.0,0.00868608]
[1728644330696,0.173818,61199.0,61198.0,0.17209008]
[1728644331332,0.173818,61199.0,61198.0,0.00868608]
[1728644331558,0.173818,61199.0,61198.0,0.17109008]
[1728644331790,0.172818,61199.0,61198.0,0.17009008]
[1728644332030,0.173818,61199.0,61198.0,0.17109008]
[1728644332917,0.174818,61199.0,61198.0,0.17209008]
[1728644335140,0.39353898,61199.0,61198.0,0.00868608]
[1728644335365,0.23013798,61199.0,61198.0,0.00868608]
[1728644335588,0.23013798,61199.0,61198.0,0.17209008]
[1728644335822,0.23013798,61199.0,61198.0,0.00868608]
[1728644336050,0.23013798,61199.0,61198.0,0.17209008]
[1728644337578,0.23013798,61199.0,61198.0,0.00868608]
[1728644337807,0.174818,61199.0,61198.0,0.17209008]
[1728644341371,0.174818,61199.0,61198.0,0.00868608]
[1728644342452,0.338219,61199.0,61198.0,0.00868608]
[1728644344244,0.338219,61199.0,61198.0,0.002217]
[1728644346086,0.5075283,61199.0,61198.0,0.002217]
[1728644346511,0.63627909,61199.0,61198.0,0.002217]
[1728644349414,0.5075283,61199.0,61198.0,0.002217]
[1728644350570,0.5075283,61199.0,61198.0,0.001217]
[1728644350571,0.5065283,61199.0,61198.0,0.001217]
[1728644350996,0.5075283,61199.0,61198.0,0.002217]
[1728644351500,0.5065283,61199.0,61198.0,0.001217]
[1728644351722,0.5055283,61199.0,61198.0,0.000217]
[1728644351933,0.5195283,61199.0,61198.0,0.001217]
[1728644352361,0.5195283,61199.0,61198.0,0.000217]
[1728644352581,0.5335283,61199.0,61198.0,0.002217]
[1728644352791,0.5435283,61199.0,61198.0,0.002217]
[1728644353672,0.67587909,61199.0,61198.0,0.002217]
[1728644354169,0.5435283,61199.0,61198.0,0.002217]
[1728644360778,0.25512,61192.0,61191.0,0.15159856]
[1728644361204,0.163424,61191.0,61187.0,0.163432]
[1728644361637,0.163424,61191.0,61188.0,0.00652836]
[1728644362288,0.163426,61190.0,61188.0,0.00652836]
[1728644362806,0.0917,61192.0,61187.0,0.163433]
[1728644362949,0.0917,61192.0,61189.0,0.00652767]
[1728644363217,0.177422,61191.0,61188.0,0.00652836]
[1728644363438,0.163422,61191.0,61190.0,0.00652699]
[1728644363674,0.163422,61191.0,61189.0,0.00652767]
[1728644363899,0.163422,61191.0,61187.0,0.163432]
[1728644363900,0.014,61190.0,61188.0,0.001]
[1728644365055,0.163422,61191.0,61187.0,0.164432]
[1728644365286,0.177422,61191.0,61188.0,0.001]
[1728644365716,0.173422,61191.0,61190.0,0.001]
[1728644366381,0.163422,61191.0,61187.0,0.163432]
[1728644366612,0.163427,61190.0,61188.0,0.002]
[1728644366822,0.163427,61190.0,61188.0,0.001]
[1728644367097,0.163427,61190.0,61186.0,0.163433]
[1728644367525,0.336848,61191.0,61184.0,0.04884259]
[1728644367526,0.0999011,61189.0,61184.0,0.04884259]
[1728644367751,0.01,61191.0,61184.0,0.04884259]
[1728644367752,0.32685,61190.0,61184.0,0.04884259]
[1728644367979,0.163433,61187.0,61185.0,0.00653042]
[1728644368631,0.163431,61188.0,61185.0,0.00653042]
[1728644369293,0.163431,61188.0,61185.0,0.16996842]
[1728644369511,0.0917824,61187.0,61185.0,0.17196842]
[1728644369725,0.0927824,61187.0,61185.0,0.17796842]
[1728644369944,0.0927824,61187.0,61185.0,0.17996842]
[1728644370163,0.0917824,61187.0,61185.0,0.17196842]
[1728644370427,0.0917824,61187.0,61185.0,0.00853042]
[1728644370648,0.001,61188.0,61186.0,0.163436]
[1728644370934,0.001,61188.0,61185.0,0.06537301]
[1728644371170,0.001,61188.0,61187.0,0.00652904]
[1728644371408,0.001,61188.0,61186.0,0.16996373]
[1728644371648,0.001,61188.0,61186.0,0.163434]
[1728644371843,0.163428,61189.0,61187.0,0.00652904]
[1728644372602,0.163425,61190.0,61187.0,0.1718266]
[1728644372831,0.163429,61189.0,61185.0,0.37775929]
[1728644373067,0.163428,61189.0,61188.0,0.00839361]
[1728644373304,0.170429,61189.0,61187.0,0.001]
[1728644373566,0.170429,61189.0,61188.0,0.00839539]
[1728644373567,0.007,61189.0,61188.0,0.00839539]
[1728644373798,0.163424,61191.0,61188.0,0.00839539]
[1728644374023,0.163424,61191.0,61188.0,0.17182539]
[1728644374272,0.163424,61191.0,61188.0,0.00839539]
[1728644374799,0.163428,61189.0,61188.0,0.00839539]
[1728644375041,0.013,61189.0,61188.0,0.00839539]
[1728644375268,0.008,61190.0,61188.0,0.00840957]
[1728644375503,0.179059,61191.0,61188.0,0.00940957]
[1728644375739,0.179059,61191.0,61188.0,0.00840957]
[1728644375993,0.014,61189.0,61188.0,0.01040957]
[1728644376251,0.014,61189.0,61188.0,0.00940957]
[1728644376456,0.19501744,61191.0,61188.0,0.00840957]
[1728644376457,0.165059,61191.0,61188.0,0.00840957]
[1728644376711,0.165059,61191.0,61188.0,0.01040957]
[1728644376712,0.023,61190.0,61188.0,0.01040957]
[1728644377859,0.009,61190.0,61188.0,0.00940957]
[1728644378114,0.16506,61191.0,61188.0,0.00840957]
[1728644378347,0.022,61189.0,61188.0,0.01040957]
[1728644378641,0.022,61189.0,61188.0,0.00940957]
[1728644378885,0.014,61189.0,61188.0,0.00940957]
[1728644379119,0.009,61190.0,61188.0,0.00940957]
[1728644379812,0.009,61190.0,61188.0,0.17383957]
[1728644380031,0.17906,61191.0,61188.0,0.17283957]
[1728644381182,0.17906,61191.0,61188.0,0.17183957]
[1728644381419,0.001636,61191.0,61188.0,0.00840957]
[1728644381674,0.008,61189.0,61188.0,0.17383957]
[1728644381873,0.008,61189.0,61188.0,0.17283957]
[1728644382069,0.014,61190.0,61188.0,0.17283957]
[1728644382316,0.014,61190.0,61188.0,0.17383957]
[1728644382815,0.014,61190.0,61188.0,0.01040957]
[1728644383052,0.001636,61191.0,61188.0,0.00840957]
[1728644383301,0.008,61189.0,61188.0,0.17383957]
[1728644384430,0.163428,61189.0,61188.0,0.00840957]
[1728644384634,0.491907,61191.0,61188.0,0.00840957]
[1728644384778,0.009,61190.0,61188.0,0.05929226]
[1728644384980,0.009,61190.0,61188.0,0.05829226]
[1728644385213,0.17906,61191.0,61188.0,0.05729226]
[1728644385434,0.014,61189.0,61188.0,0.05829226]
[1728644385645,0.008,61189.0,61188.0,0.05834217]
[1728644385872,0.008,61189.0,61188.0,0.05934217]
[1728644386087,0.014,61190.0,61188.0,0.05834217]
[1728644386410,0.16506,61191.0,61188.0,0.05734217]
[1728644386580,0.17506,61191.0,61188.0,0.05834217]
[1728644386990,0.2751217,61191.0,61188.0,0.05834217]
[1728644387490,0.011636,61191.0,61188.0,0.22177117]
[1728644387722,0.001636,61191.0,61188.0,0.05734217]
[1728644387952,0.014,61189.0,61188.0,0.05934217]
[1728644388172,0.009,61190.0,61188.0,0.05834217]
[1728644388404,0.009,61190.0,61189.0,0.0489326]
[1728644388625,0.009,61190.0,61189.0,0.0573354]
[1728644388626,0.163425,61190.0,61189.0,0.0573354]
[1728644389532,0.177425,61190.0,61189.0,0.0583354]
[1728644389786,0.177425,61190.0,61189.0,0.0593354]
[1728644389787,0.187425,61190.0,61189.0,0.0593354]
[1728644390307,0.024,61190.0,61189.0,0.0593354]
[1728644390529,0.024,61190.0,61189.0,0.05937158]
[1728644390798,0.024,61190.0,61189.0,0.22279958]
[1728644391239,0.024,61190.0,61189.0,0.1738308]
[1728644392110,0.024,61190.0,61189.0,0.0104028]